[Event "*** Titled Tuesday Blitz"]
[Site "Chess.com"]
[Date "2019.07.02"]
[Round "1"]
[White "Msb2"]
[Black "Keithonsky"]
[Result "1-0"]
[WhiteElo "2867"]
[BlackElo "2448"]
[TimeControl "180+2"]
[EndTime "13:01:12 PDT"]
[Termination "Msb2 won by resignation"]

1. d4 {[%clk 0:03:01.9]} 1... Nf6 {[%clk 0:03:00.6]} 2. c4 {[%clk 0:03:02.9]}
2... g6 {[%clk 0:03:01.1]} 3. Nc3 {[%clk 0:03:04]} 3... Bg7 {[%clk 0:03:02.5]}
4. e4 {[%clk 0:03:05.2]} 4... d6 {[%clk 0:03:04]} 5. h3 {[%clk 0:03:06.8]} 5...
O-O {[%clk 0:03:04.8]} 6. Be3 {[%clk 0:03:08.2]} 6... e5 {[%clk 0:03:04.7]} 7.
d5 {[%clk 0:03:09.6]} 7... a5 {[%clk 0:03:05.6]} 8. g4 {[%clk 0:03:10.2]} 8...
Nfd7 {[%clk 0:03:04.8]} 9. Qd2 {[%clk 0:03:11]} 9... Na6 {[%clk 0:03:06.2]} 10.
Nge2 {[%clk 0:03:11.9]} 10... Ndc5 {[%clk 0:03:07.5]} 11. Ng3 {[%clk 0:03:12.2]}
11... Qh4 {[%clk 0:03:07.1]} 12. Bg5 {[%clk 0:03:10.7]} 12... Bh6 {[%clk
0:02:45.6]} 13. Bxh4 {[%clk 0:03:08.9]} 1-0

[Event "*** Titled Tuesday Blitz"]
[Site "Chess.com"]
[Date "2019.07.02"]
[Round "1"]
[White "sergeikim"]
[Black "PNEPaul"]
[Result "1-0"]
[WhiteElo "2485"]
[BlackElo "1848"]
[TimeControl "180+2"]
[EndTime "13:01:32 PDT"]
[Termination "sergeikim won by resignation"]

1. d4 {[%clk 0:02:59.2]} 1... a6 {[%clk 0:02:59.1]} 2. c4 {[%clk 0:02:59.6]}
2... d6 {[%clk 0:03:00.3]} 3. Nc3 {[%clk 0:02:59.7]} 3... g6 {[%clk 0:03:01.4]}
4. e4 {[%clk 0:02:59.9]} 4... Nd7 {[%clk 0:03:01.9]} 5. Nge2 {[%clk 0:03:00.1]}
5... Bg7 {[%clk 0:03:03.1]} 6. Ng3 {[%clk 0:03:00.2]} 6... e6 {[%clk 0:03:02.9]}
7. Be2 {[%clk 0:02:57.6]} 7... Ne7 {[%clk 0:03:03.7]} 8. O-O {[%clk 0:02:56.7]}
8... O-O {[%clk 0:03:04.3]} 9. f4 {[%clk 0:02:57.3]} 9... f5 {[%clk 0:03:04.4]}
10. e5 {[%clk 0:02:58.1]} 10... dxe5 {[%clk 0:02:58.1]} 11. dxe5 {[%clk
0:02:51.7]} 11... Nb6 {[%clk 0:02:51.2]} 12. Be3 {[%clk 0:02:48.8]} 12... c6
{[%clk 0:02:46.2]} 13. Qxd8 {[%clk 0:02:47.3]} 13... Rxd8 {[%clk 0:02:46.1]} 14.
Bxb6 {[%clk 0:02:47.5]} 1-0

[Event "*** Titled Tuesday Blitz"]
[Site "Chess.com"]
[Date "2019.07.02"]
[Round "1"]
[White "Doraemon7"]
[Black "GuerrieroFromLevant"]
[Result "1-0"]
[WhiteElo "2581"]
[BlackElo "2225"]
[TimeControl "180+2"]
[EndTime "13:01:40 PDT"]
[Termination "Doraemon7 won by resignation"]

1. Nf3 {[%clk 0:03:01.7]} 1... d5 {[%clk 0:03:00.5]} 2. d4 {[%clk 0:03:02.1]}
2... c5 {[%clk 0:02:59.4]} 3. g3 {[%clk 0:02:59.4]} 3... Nc6 {[%clk 0:03:00]} 4.
Bg2 {[%clk 0:02:59]} 4... Nf6 {[%clk 0:03:01.4]} 5. O-O {[%clk 0:03:00.1]} 5...
e6 {[%clk 0:03:01.5]} 6. c4 {[%clk 0:03:01.3]} 6... cxd4 {[%clk 0:03:02.6]} 7.
cxd5 {[%clk 0:03:01.7]} 7... Qxd5 {[%clk 0:03:00.5]} 8. Bf4 {[%clk 0:02:46.4]}
8... Bc5 {[%clk 0:02:58.2]} 9. Ne5 {[%clk 0:02:38.1]} 9... Qd8 {[%clk
0:02:56.6]} 10. Nxc6 {[%clk 0:02:36]} 10... bxc6 {[%clk 0:02:57.5]} 11. Qc2
{[%clk 0:02:31.1]} 11... Bb6 {[%clk 0:02:53.7]} 12. Qxc6+ {[%clk 0:02:29.7]} 1-0

[Event "*** Titled Tuesday Blitz"]
[Site "Chess.com"]
[Date "2019.07.02"]
[Round "1"]
[White "WorldChampionBulletChess"]
[Black "1g41-0"]
[Result "1-0"]
[WhiteElo "2138"]
[BlackElo "2499"]
[TimeControl "180+2"]
[EndTime "13:02:36 PDT"]
[Termination "WorldChampionBulletChess won by checkmate"]

1. d4 {[%clk 0:03:00.3]} 1... d5 {[%clk 0:02:59.5]} 2. Nf3 {[%clk 0:02:58.2]}
2... Nf6 {[%clk 0:03:00.3]} 3. g3 {[%clk 0:02:59.3]} 3... c6 {[%clk 0:02:59.4]}
4. Bg2 {[%clk 0:03:01]} 4... Bf5 {[%clk 0:03:00.1]} 5. O-O {[%clk 0:03:02.6]}
5... e6 {[%clk 0:03:01.1]} 6. Nbd2 {[%clk 0:03:04.2]} 6... Be7 {[%clk
0:03:00.4]} 7. b3 {[%clk 0:03:05.8]} 7... O-O {[%clk 0:03:01.4]} 8. Bb2 {[%clk
0:03:07.1]} 8... a5 {[%clk 0:03:03]} 9. c4 {[%clk 0:03:08.2]} 9... a4 {[%clk
0:03:04.2]} 10. Ne5 {[%clk 0:03:07.9]} 10... Nbd7 {[%clk 0:03:02.2]} 11. Ndf3
{[%clk 0:03:07.6]} 11... Ne4 {[%clk 0:03:01.8]} 12. Nxd7 {[%clk 0:03:07.3]}
12... Qxd7 {[%clk 0:03:02.8]} 13. Ne5 {[%clk 0:03:08.7]} 13... Qc7 {[%clk
0:03:03.9]} 14. cxd5 {[%clk 0:03:09.7]} 14... exd5 {[%clk 0:03:04.2]} 15. f3
{[%clk 0:03:08.9]} 15... Nd6 {[%clk 0:02:35]} 16. Rc1 {[%clk 0:03:05.8]} 16...
Nb5 {[%clk 0:02:28.9]} 17. g4 {[%clk 0:03:04.9]} 17... Bg6 {[%clk 0:02:28.7]}
18. f4 {[%clk 0:03:06.2]} 18... f6 {[%clk 0:02:22.6]} 19. Nxg6 {[%clk
0:03:05.7]} 19... hxg6 {[%clk 0:02:24.5]} 20. Bxd5+ {[%clk 0:03:01.2]} 20... Kh7
{[%clk 0:02:24]} 21. Qd3 {[%clk 0:02:49.6]} 21... Qd7 {[%clk 0:02:11.1]} 22.
Qh3# {[%clk 0:02:50]} 1-0

[Event "*** Titled Tuesday Blitz"]
[Site "Chess.com"]
[Date "2019.07.02"]
[Round "1"]
[White "AryanTari"]
[Black "DanielRensch"]
[Result "1-0"]
[WhiteElo "2824"]
[BlackElo "2429"]
[TimeControl "180+2"]
[EndTime "13:02:44 PDT"]
[Termination "AryanTari won by resignation"]

1. Nf3 {[%clk 0:02:33.5]} 1... Nf6 {[%clk 0:03:00.1]} 2. g3 {[%clk 0:02:30.7]}
2... d5 {[%clk 0:03:00.4]} 3. Bg2 {[%clk 0:02:23.2]} 3... c6 {[%clk 0:03:00.8]}
4. d4 {[%clk 0:02:21.8]} 4... Bf5 {[%clk 0:03:01]} 5. O-O {[%clk 0:02:17.2]}
5... Qc8 {[%clk 0:03:01.2]} 6. c4 {[%clk 0:02:15.8]} 6... e6 {[%clk 0:03:00.8]}
7. Nc3 {[%clk 0:02:15.6]} 7... Bd6 {[%clk 0:03:01]} 8. Nh4 {[%clk 0:02:10.9]}
8... Bg6 {[%clk 0:03:01.3]} 9. Nxg6 {[%clk 0:02:08.4]} 9... hxg6 {[%clk
0:03:02]} 10. e4 {[%clk 0:02:06.5]} 10... dxe4 {[%clk 0:03:01]} 11. Nxe4 {[%clk
0:02:08.4]} 11... Nxe4 {[%clk 0:03:01.1]} 12. Bxe4 {[%clk 0:02:10.3]} 12... Nd7
{[%clk 0:03:01.7]} 13. Be3 {[%clk 0:02:11.1]} 13... Nf6 {[%clk 0:03:02.4]} 14.
Bg2 {[%clk 0:02:12.1]} 14... Qc7 {[%clk 0:03:02.5]} 15. Qe2 {[%clk 0:02:08.8]}
15... O-O-O {[%clk 0:03:02.7]} 16. b4 {[%clk 0:02:01.9]} 16... Rh5 {[%clk
0:03:02.6]} 17. b5 {[%clk 0:02:00.6]} 17... Rdh8 {[%clk 0:03:02.3]} 18. bxc6
{[%clk 0:02:00.8]} 18... bxc6 {[%clk 0:03:02.3]} 19. c5 {[%clk 0:02:00.7]} 19...
Be7 {[%clk 0:02:59.8]} 20. Qa6+ {[%clk 0:02:00.5]} 20... Kd7 {[%clk 0:02:58.1]}
21. Rab1 {[%clk 0:02:02.1]} 1-0

[Event "*** Titled Tuesday Blitz"]
[Site "Chess.com"]
[Date "2019.07.02"]
[Round "1"]
[White "vjbaker"]
[Black "GMsKoRPioN"]
[Result "0-1"]
[WhiteElo "2209"]
[BlackElo "2566"]
[TimeControl "180+2"]
[EndTime "13:02:57 PDT"]
[Termination "GMsKoRPioN won by resignation"]

1. e4 {[%clk 0:03:01.8]} 1... d6 {[%clk 0:03:00.1]} 2. d4 {[%clk 0:03:01.7]}
2... g6 {[%clk 0:03:02]} 3. Nf3 {[%clk 0:03:02.2]} 3... Bg7 {[%clk 0:03:03.2]}
4. Be2 {[%clk 0:03:03.4]} 4... Nf6 {[%clk 0:03:04.4]} 5. Nc3 {[%clk 0:03:02.8]}
5... O-O {[%clk 0:03:05.8]} 6. O-O {[%clk 0:03:03]} 6... c6 {[%clk 0:03:07.2]}
7. a4 {[%clk 0:03:02.5]} 7... Nbd7 {[%clk 0:03:08.1]} 8. Re1 {[%clk 0:03:03.1]}
8... Qc7 {[%clk 0:03:09.2]} 9. h3 {[%clk 0:03:00]} 9... Re8 {[%clk 0:03:08.4]}
10. Bg5 {[%clk 0:03:00]} 10... e5 {[%clk 0:03:09.3]} 11. Qd2 {[%clk 0:02:59.7]}
11... exd4 {[%clk 0:03:05.3]} 12. Nxd4 {[%clk 0:03:00.2]} 12... Nxe4 {[%clk
0:02:57.7]} 13. Nxe4 {[%clk 0:02:58.6]} 13... Rxe4 {[%clk 0:02:59.5]} 14. Bg4
{[%clk 0:02:32.5]} 14... Rxd4 {[%clk 0:02:53.1]} 15. Re8+ {[%clk 0:02:30.2]}
15... Nf8 {[%clk 0:02:54.2]} 16. Rxf8+ {[%clk 0:01:46.6]} 16... Kxf8 {[%clk
0:02:49]} 0-1

[Event "*** Titled Tuesday Blitz"]
[Site "Chess.com"]
[Date "2019.07.02"]
[Round "1"]
[White "severomorskij"]
[Black "Siniauski"]
[Result "1-0"]
[WhiteElo "2847"]
[BlackElo "2441"]
[TimeControl "180+2"]
[EndTime "13:03:13 PDT"]
[Termination "severomorskij won by resignation"]

1. d4 {[%clk 0:03:01.9]} 1... Nf6 {[%clk 0:03:00.7]} 2. Bg5 {[%clk 0:03:02.6]}
2... e6 {[%clk 0:02:59.2]} 3. e4 {[%clk 0:03:02.6]} 3... Be7 {[%clk 0:02:58.3]}
4. Bxf6 {[%clk 0:02:57.9]} 4... Bxf6 {[%clk 0:02:59.1]} 5. e5 {[%clk 0:02:58.8]}
5... Be7 {[%clk 0:02:58.2]} 6. Qg4 {[%clk 0:02:59.5]} 6... g6 {[%clk 0:02:54.4]}
7. Nf3 {[%clk 0:02:59.5]} 7... c5 {[%clk 0:02:54]} 8. Nc3 {[%clk 0:02:58.6]}
8... Nc6 {[%clk 0:02:46.9]} 9. d5 {[%clk 0:02:57.7]} 9... exd5 {[%clk
0:02:34.1]} 10. Nxd5 {[%clk 0:02:58.5]} 10... d6 {[%clk 0:02:34.9]} 11. Qg3
{[%clk 0:02:52.2]} 11... dxe5 {[%clk 0:02:32.6]} 12. O-O-O {[%clk 0:02:52.1]}
12... Qa5 {[%clk 0:02:21.1]} 13. Nxe7 {[%clk 0:02:30.7]} 13... Nxe7 {[%clk
0:01:50.3]} 14. Qxe5 {[%clk 0:02:29.9]} 14... Rg8 {[%clk 0:01:50.6]} 15. Ng5
{[%clk 0:02:22.5]} 15... Qxa2 {[%clk 0:01:45.4]} 16. Bb5+ {[%clk 0:02:22.1]} 1-0

[Event "*** Titled Tuesday Blitz"]
[Site "Chess.com"]
[Date "2019.07.02"]
[Round "1"]
[White "narutosmith"]
[Black "TregubovP"]
[Result "1/2-1/2"]
[WhiteElo "2195"]
[BlackElo "2537"]
[TimeControl "180+2"]
[EndTime "13:03:31 PDT"]
[Termination "Game drawn by repetition"]

1. d4 {[%clk 0:03:01.5]} 1... Nf6 {[%clk 0:03:00.1]} 2. c4 {[%clk 0:03:02.7]}
2... e6 {[%clk 0:03:01.5]} 3. Nc3 {[%clk 0:03:03.4]} 3... Bb4 {[%clk 0:03:02.1]}
4. f3 {[%clk 0:03:04.8]} 4... c5 {[%clk 0:02:58.8]} 5. a3 {[%clk 0:03:05.4]}
5... Bxc3+ {[%clk 0:02:56.2]} 6. bxc3 {[%clk 0:03:07.3]} 6... O-O {[%clk
0:02:51.7]} 7. e4 {[%clk 0:03:07.4]} 7... d6 {[%clk 0:02:51.1]} 8. Bd3 {[%clk
0:03:07.3]} 8... e5 {[%clk 0:02:51.5]} 9. Ne2 {[%clk 0:03:07.7]} 9... Nc6 {[%clk
0:02:51.9]} 10. O-O {[%clk 0:03:07.1]} 10... h6 {[%clk 0:02:52.3]} 11. f4 {[%clk
0:03:04]} 11... Re8 {[%clk 0:02:46.7]} 12. d5 {[%clk 0:03:00.7]} 12... Na5
{[%clk 0:02:39.6]} 13. fxe5 {[%clk 0:02:55.3]} 13... dxe5 {[%clk 0:02:40.6]} 14.
Ng3 {[%clk 0:02:56.5]} 14... b6 {[%clk 0:02:39.7]} 15. Nf5 {[%clk 0:02:53.4]}
15... Bxf5 {[%clk 0:02:39.6]} 16. Rxf5 {[%clk 0:02:54.5]} 16... Nb7 {[%clk
0:02:41.1]} 17. Rf2 {[%clk 0:02:09.2]} 17... Nd6 {[%clk 0:02:41.8]} 18. Qf3
{[%clk 0:02:10]} 18... Nh7 {[%clk 0:02:38.4]} 19. Qh5 {[%clk 0:02:06]} 19... Nf6
{[%clk 0:02:07.6]} 20. Qf3 {[%clk 0:02:04.8]} 20... Nh7 {[%clk 0:02:04.8]} 21.
Qh5 {[%clk 0:02:05.1]} 21... Nf6 {[%clk 0:02:05.1]} 22. Qf3 {[%clk 0:02:02.9]}
1/2-1/2

[Event "*** Titled Tuesday Blitz"]
[Site "Chess.com"]
[Date "2019.07.02"]
[Round "1"]
[White "GukeshDommaraju"]
[Black "dcremisi"]
[Result "1-0"]
[WhiteElo "2596"]
[BlackElo "2238"]
[TimeControl "180+2"]
[EndTime "13:04:02 PDT"]
[Termination "GukeshDommaraju won by checkmate"]

1. Nf3 {[%clk 0:03:01.3]} 1... e6 {[%clk 0:02:55.7]} 2. g3 {[%clk 0:03:00.3]}
2... d5 {[%clk 0:02:55.6]} 3. Bg2 {[%clk 0:03:01]} 3... b6 {[%clk 0:02:57.3]} 4.
O-O {[%clk 0:03:01.2]} 4... Bb7 {[%clk 0:02:58.9]} 5. d3 {[%clk 0:03:02]} 5...
Nd7 {[%clk 0:03:00.2]} 6. Nbd2 {[%clk 0:03:02.5]} 6... Ngf6 {[%clk 0:03:01.7]}
7. b3 {[%clk 0:03:00.4]} 7... Be7 {[%clk 0:03:01.8]} 8. Bb2 {[%clk 0:03:01.6]}
8... O-O {[%clk 0:03:03.5]} 9. c4 {[%clk 0:03:02.7]} 9... c5 {[%clk 0:03:02.8]}
10. cxd5 {[%clk 0:02:59.4]} 10... Nxd5 {[%clk 0:03:02.9]} 11. a3 {[%clk
0:02:59.1]} 11... Bf6 {[%clk 0:03:03.7]} 12. Qc2 {[%clk 0:02:58.8]} 12... Bxb2
{[%clk 0:03:04.4]} 13. Qxb2 {[%clk 0:03:00.7]} 13... Qf6 {[%clk 0:03:05.6]} 14.
Qxf6 {[%clk 0:02:39.1]} 14... N7xf6 {[%clk 0:03:06.7]} 15. Rfc1 {[%clk
0:02:37.5]} 15... Rfd8 {[%clk 0:03:06.8]} 16. Ne5 {[%clk 0:02:37.4]} 16... Rab8
{[%clk 0:03:06.5]} 17. Ndc4 {[%clk 0:02:34.2]} 17... Nd7 {[%clk 0:02:58.7]} 18.
b4 {[%clk 0:02:21.4]} 18... Nxe5 {[%clk 0:02:55.8]} 19. Nxe5 {[%clk 0:02:21.9]}
19... f6 {[%clk 0:02:53.7]} 20. bxc5 {[%clk 0:02:14.1]} 20... fxe5 {[%clk
0:02:49.5]} 21. c6 {[%clk 0:02:14.9]} 21... Bxc6 {[%clk 0:02:43]} 22. Rxc6
{[%clk 0:02:15.2]} 22... Kf7 {[%clk 0:02:42.4]} 23. Rac1 {[%clk 0:02:14.3]}
23... Ke7 {[%clk 0:02:41.2]} 24. R6c4 {[%clk 0:01:27.4]} 24... Kd7 {[%clk
0:02:31.2]} 25. Bxd5 {[%clk 0:01:27.2]} 25... exd5 {[%clk 0:02:30.4]} 26. Rc7+
{[%clk 0:01:28.7]} 26... Kd6 {[%clk 0:02:32]} 27. R1c6# {[%clk 0:01:28.7]} 1-0

[Event "*** Titled Tuesday Blitz"]
[Site "Chess.com"]
[Date "2019.07.02"]
[Round "1"]
[White "TaykaGM"]
[Black "WilliamSchill"]
[Result "1-0"]
[WhiteElo "2527"]
[BlackElo "1964"]
[TimeControl "180+2"]
[EndTime "13:04:06 PDT"]
[Termination "TaykaGM won by resignation"]

1. Nf3 {[%clk 0:03:01.8]} 1... Nf6 {[%clk 0:02:59.6]} 2. d4 {[%clk 0:03:02.8]}
2... g6 {[%clk 0:03:00.7]} 3. c4 {[%clk 0:03:04.1]} 3... Bg7 {[%clk 0:03:02]} 4.
Nc3 {[%clk 0:03:05.8]} 4... O-O {[%clk 0:03:03]} 5. g3 {[%clk 0:03:07.2]} 5...
d6 {[%clk 0:03:03.8]} 6. Bg2 {[%clk 0:03:08.1]} 6... Nbd7 {[%clk 0:03:04.7]} 7.
O-O {[%clk 0:03:10]} 7... e5 {[%clk 0:03:05.6]} 8. b3 {[%clk 0:03:11.1]} 8... c6
{[%clk 0:03:00.8]} 9. Ba3 {[%clk 0:03:11.6]} 9... exd4 {[%clk 0:02:48.4]} 10.
Nxd4 {[%clk 0:03:13.5]} 10... Re8 {[%clk 0:02:44.1]} 11. Bxd6 {[%clk 0:03:11.2]}
11... Nf8 {[%clk 0:02:38.9]} 12. c5 {[%clk 0:03:00.9]} 12... Ne6 {[%clk
0:02:34.3]} 13. Nxe6 {[%clk 0:03:01.8]} 13... Bxe6 {[%clk 0:02:29.3]} 14. Rc1
{[%clk 0:03:03.3]} 14... Rc8 {[%clk 0:02:18.8]} 15. Qd2 {[%clk 0:02:58.2]} 15...
Nd7 {[%clk 0:02:12.1]} 16. Rfd1 {[%clk 0:02:58.4]} 16... Ne5 {[%clk 0:02:05.1]}
17. Ne4 {[%clk 0:02:54]} 17... f5 {[%clk 0:01:49.1]} 18. Ng5 {[%clk 0:02:50.5]}
18... Nf7 {[%clk 0:01:49.9]} 19. Nxe6 {[%clk 0:02:50.3]} 19... Rxe6 {[%clk
0:01:49.6]} 20. Bf4 {[%clk 0:02:50.9]} 20... Qxd2 {[%clk 0:01:49.7]} 21. Rxd2
{[%clk 0:02:52.8]} 21... Rce8 {[%clk 0:01:45]} 22. Rd7 {[%clk 0:02:47.3]} 22...
Rxe2 {[%clk 0:01:14.1]} 23. Rxb7 {[%clk 0:02:46.6]} 23... Rxa2 {[%clk
0:01:14.7]} 24. Bxc6 {[%clk 0:02:45.2]} 24... Ree2 {[%clk 0:01:15]} 25. Bd5
{[%clk 0:02:46.7]} 1-0

[Event "*** Titled Tuesday Blitz"]
[Site "Chess.com"]
[Date "2019.07.02"]
[Round "1"]
[White "NM2019"]
[Black "IMAghasiyevKamal"]
[Result "0-1"]
[WhiteElo "2126"]
[BlackElo "2529"]
[TimeControl "180+2"]
[EndTime "13:04:08 PDT"]
[Termination "IMAghasiyevKamal won by resignation"]

1. c4 {[%clk 0:03:01.9]} 1... e5 {[%clk 0:02:59]} 2. Nc3 {[%clk 0:03:02.8]} 2...
Nf6 {[%clk 0:02:57.8]} 3. Nf3 {[%clk 0:03:04.2]} 3... Nc6 {[%clk 0:02:58.6]} 4.
g3 {[%clk 0:03:05.3]} 4... Bb4 {[%clk 0:02:54]} 5. Bg2 {[%clk 0:03:06.6]} 5...
O-O {[%clk 0:02:53.5]} 6. Nd5 {[%clk 0:03:06.3]} 6... Bc5 {[%clk 0:02:50.9]} 7.
O-O {[%clk 0:03:04.3]} 7... d6 {[%clk 0:02:51.7]} 8. d3 {[%clk 0:03:04.2]} 8...
h6 {[%clk 0:02:49.4]} 9. h3 {[%clk 0:03:04.3]} 9... Be6 {[%clk 0:02:44.4]} 10.
e4 {[%clk 0:03:04.1]} 10... Nd4 {[%clk 0:02:43.3]} 11. Nxd4 {[%clk 0:03:01.4]}
11... Bxd4 {[%clk 0:02:44.1]} 12. Be3 {[%clk 0:02:57.8]} 12... Nxd5 {[%clk
0:02:29.1]} 13. cxd5 {[%clk 0:02:48.7]} 13... Bxe3 {[%clk 0:02:29.7]} 14. fxe3
{[%clk 0:02:49.3]} 14... Bd7 {[%clk 0:02:29.1]} 15. Rc1 {[%clk 0:02:42.4]} 15...
Rc8 {[%clk 0:02:21.1]} 16. Kh2 {[%clk 0:02:40.5]} 16... Qg5 {[%clk 0:02:18.2]}
17. Qe2 {[%clk 0:02:31.2]} 17... c5 {[%clk 0:02:09.3]} 18. dxc6 {[%clk 0:02:24]}
18... Bxc6 {[%clk 0:02:08.4]} 19. d4 {[%clk 0:02:19]} 19... exd4 {[%clk
0:02:01.8]} 20. exd4 {[%clk 0:02:20.2]} 20... Bb5 {[%clk 0:02:03.1]} 21. Qf2
{[%clk 0:01:40.3]} 21... Rxc1 {[%clk 0:02:02]} 0-1

[Event "*** Titled Tuesday Blitz"]
[Site "Chess.com"]
[Date "2019.07.02"]
[Round "1"]
[White "letsgoband"]
[Black "DenishevM"]
[Result "0-1"]
[WhiteElo "2271"]
[BlackElo "2612"]
[TimeControl "180+2"]
[EndTime "13:04:10 PDT"]
[Termination "DenishevM won by resignation"]

1. e4 {[%clk 0:03:01.9]} 1... c5 {[%clk 0:03:00.5]} 2. Nf3 {[%clk 0:03:01]} 2...
d6 {[%clk 0:03:01.6]} 3. Bb5+ {[%clk 0:03:01.3]} 3... Nd7 {[%clk 0:03:02.1]} 4.
a4 {[%clk 0:03:02.3]} 4... Nf6 {[%clk 0:03:01.8]} 5. Nc3 {[%clk 0:03:02.7]} 5...
e6 {[%clk 0:03:03.2]} 6. O-O {[%clk 0:03:03.8]} 6... Be7 {[%clk 0:03:04.5]} 7.
Re1 {[%clk 0:03:05.3]} 7... O-O {[%clk 0:03:05.4]} 8. d4 {[%clk 0:03:06.3]} 8...
cxd4 {[%clk 0:03:04.3]} 9. Qxd4 {[%clk 0:03:08.2]} 9... a6 {[%clk 0:02:57.9]}
10. Bf1 {[%clk 0:03:08]} 10... Qc7 {[%clk 0:02:55.9]} 11. h3 {[%clk 0:03:06.2]}
11... b6 {[%clk 0:02:55.6]} 12. Be3 {[%clk 0:03:07]} 12... Bb7 {[%clk
0:02:55.2]} 13. Rad1 {[%clk 0:03:07.9]} 13... Rac8 {[%clk 0:02:52.9]} 14. Bg5
{[%clk 0:02:39.6]} 14... Rfd8 {[%clk 0:02:46.9]} 15. e5 {[%clk 0:02:37.8]} 15...
dxe5 {[%clk 0:02:36.4]} 16. Nxe5 {[%clk 0:02:39.7]} 16... h6 {[%clk 0:02:24.9]}
17. Bf4 {[%clk 0:02:29.7]} 17... Nxe5 {[%clk 0:02:20]} 18. Qxe5 {[%clk
0:02:26.3]} 18... Qxe5 {[%clk 0:02:15.8]} 19. Bxe5 {[%clk 0:02:28.2]} 19... Bb4
{[%clk 0:02:12.1]} 20. Re3 {[%clk 0:02:24.4]} 20... Rxd1 {[%clk 0:02:07.8]} 21.
Nxd1 {[%clk 0:02:25.5]} 21... Rxc2 {[%clk 0:02:08.3]} 22. Rb3 {[%clk 0:02:22.7]}
22... Bc5 {[%clk 0:02:06.3]} 23. Ne3 {[%clk 0:02:21.8]} 23... Rc1 {[%clk
0:02:04.2]} 24. Nc4 {[%clk 0:02:13.9]} 24... Ne4 {[%clk 0:01:59]} 25. Ne3 {[%clk
0:01:55.6]} 0-1

[Event "*** Titled Tuesday Blitz"]
[Site "Chess.com"]
[Date "2019.07.02"]
[Round "1"]
[White "SubrotaBiswas"]
[Black "icychess54"]
[Result "0-1"]
[WhiteElo "2508"]
[BlackElo "2130"]
[TimeControl "180+2"]
[EndTime "13:04:21 PDT"]
[Termination "icychess54 won by checkmate"]

1. e4 {[%clk 0:03:01.9]} 1... c5 {[%clk 0:03:00.1]} 2. Nf3 {[%clk 0:03:02.9]}
2... d6 {[%clk 0:03:00.7]} 3. d4 {[%clk 0:03:03.7]} 3... cxd4 {[%clk 0:03:01.6]}
4. Nxd4 {[%clk 0:03:05.4]} 4... Nf6 {[%clk 0:03:01.7]} 5. Nc3 {[%clk 0:03:06.7]}
5... Nc6 {[%clk 0:03:03.1]} 6. Bc4 {[%clk 0:03:07.3]} 6... e6 {[%clk 0:03:03.8]}
7. Be3 {[%clk 0:03:08.1]} 7... a6 {[%clk 0:03:04.3]} 8. O-O {[%clk 0:03:08.2]}
8... Be7 {[%clk 0:03:05.5]} 9. f4 {[%clk 0:03:09.1]} 9... O-O {[%clk 0:03:05.5]}
10. Kh1 {[%clk 0:03:09.7]} 10... Qc7 {[%clk 0:03:06.2]} 11. Bb3 {[%clk
0:03:10.5]} 11... b5 {[%clk 0:03:06.7]} 12. Nxc6 {[%clk 0:03:03.9]} 12... Qxc6
{[%clk 0:03:07.3]} 13. e5 {[%clk 0:03:05.4]} 13... Bb7 {[%clk 0:03:03.5]} 14.
Qe2 {[%clk 0:03:05.4]} 14... Nd7 {[%clk 0:02:48.5]} 15. Rad1 {[%clk 0:02:41]}
15... dxe5 {[%clk 0:02:41.4]} 16. fxe5 {[%clk 0:02:42.8]} 16... Nxe5 {[%clk
0:02:38.4]} 17. Bd4 {[%clk 0:02:34.9]} 17... Ng6 {[%clk 0:02:33.6]} 18. Rf3
{[%clk 0:02:34.4]} 18... Rfd8 {[%clk 0:02:30.9]} 19. Rfd3 {[%clk 0:02:34.3]}
19... Bc5 {[%clk 0:02:24.4]} 20. Bxc5 {[%clk 0:02:28.5]} 20... Rxd3 {[%clk
0:02:25.6]} 21. cxd3 {[%clk 0:02:29.4]} 21... Qxc5 {[%clk 0:02:25]} 22. Ne4
{[%clk 0:02:30.1]} 22... Qd4 {[%clk 0:02:19.1]} 23. Rc1 {[%clk 0:02:26.9]} 23...
Nf4 {[%clk 0:02:11.6]} 24. Qf3 {[%clk 0:02:18.1]} 24... Nxd3 {[%clk 0:02:07.6]}
25. Nf6+ {[%clk 0:02:18.6]} 25... gxf6 {[%clk 0:01:54.8]} 26. Qxb7 {[%clk
0:02:03.6]} 26... Nf2+ {[%clk 0:01:54.3]} 27. Kg1 {[%clk 0:02:04.7]} 27... Nh3+
{[%clk 0:01:55.4]} 28. Kf1 {[%clk 0:02:02.4]} 28... Qf2# {[%clk 0:01:55.7]} 0-1

[Event "*** Titled Tuesday Blitz"]
[Site "Chess.com"]
[Date "2019.07.02"]
[Round "1"]
[White "Warerman"]
[Black "TenisMaster"]
[Result "0-1"]
[WhiteElo "2436"]
[BlackElo "2835"]
[TimeControl "180+2"]
[EndTime "13:04:24 PDT"]
[Termination "TenisMaster won by resignation"]

1. d4 {[%clk 0:03:00.9]} 1... Nf6 {[%clk 0:03:00.1]} 2. c4 {[%clk 0:03:02.3]}
2... e6 {[%clk 0:03:01.2]} 3. Nc3 {[%clk 0:03:03.8]} 3... Bb4 {[%clk 0:03:01.4]}
4. e3 {[%clk 0:03:05]} 4... O-O {[%clk 0:03:01.5]} 5. Bd3 {[%clk 0:03:06.1]}
5... d5 {[%clk 0:03:02.3]} 6. Nf3 {[%clk 0:03:07.3]} 6... c5 {[%clk 0:03:02.3]}
7. O-O {[%clk 0:03:08]} 7... dxc4 {[%clk 0:03:02.8]} 8. Bxc4 {[%clk 0:03:08.7]}
8... Nc6 {[%clk 0:03:04.4]} 9. a3 {[%clk 0:03:05.7]} 9... Ba5 {[%clk 0:03:04.7]}
10. h3 {[%clk 0:03:02.1]} 10... h6 {[%clk 0:02:53.2]} 11. Qe2 {[%clk 0:02:53.6]}
11... cxd4 {[%clk 0:02:50.5]} 12. Rd1 {[%clk 0:02:55]} 12... e5 {[%clk
0:02:38.8]} 13. exd4 {[%clk 0:02:53.5]} 13... exd4 {[%clk 0:02:39.1]} 14. Be3
{[%clk 0:02:43.8]} 14... Bb6 {[%clk 0:02:19.3]} 15. Na4 {[%clk 0:02:33.9]} 15...
Bc7 {[%clk 0:01:51]} 16. Nxd4 {[%clk 0:02:32.7]} 16... Nxd4 {[%clk 0:01:51.4]}
17. Bxd4 {[%clk 0:02:09.1]} 17... Qd6 {[%clk 0:01:51.6]} 18. g3 {[%clk 0:01:59]}
18... Bxh3 {[%clk 0:01:45.7]} 19. Bc5 {[%clk 0:01:55.6]} 19... Qc6 {[%clk
0:01:46]} 20. f4 {[%clk 0:01:46]} 20... Qxa4 {[%clk 0:01:39.8]} 21. Bxf8 {[%clk
0:01:44.1]} 21... Rxf8 {[%clk 0:01:37.6]} 22. Rac1 {[%clk 0:01:39.1]} 0-1